[Event "ChessKid Cup Div-I 2023"]
[Site "Online"]
[Date "2023.05.22"]
[Round "1.3"]
[White "Caruana, Fabiano"]
[Black "Shimanov, Aleksandr"]
[Result "1-0"]
[ECO "C18"]
[WhiteElo "2764"]
[BlackElo "2581"]
[Annotator "TA"]
[PlyCount "71"]
[EventDate "2023.05.21"]
[EventType "k.o."]
[EventCountry "NET"]
[SourceTitle "playchess.com"]
[Source "ChessBase"]
[SourceQuality "1"]
[TimeControl "900+3"]

{[%evp 11,71,-4,-14,-1,-4,-7,6,-41,-22,-23,-27,-28,-25,-41,-2,-6,26,29,52,43,40,51,46,0,0,0,21,16,43,21,18,22,48,17,97,77,83,85,129,125,117,64,160,159,228,229,388,359,356,356,356,356,672,652,802,423,422,420,412,306,322,322]} 1. e4 {[%emt 0:00:04][%cal Be2e4,Be4e5][%mdl 32]} e6 {[%emt 0:00:05]} 2. d4 {[%emt 0:00:02][%cal Bd2d4,Bd4c5][%mdl 32]} d5 {[%emt 0:00:01]} 3. Nc3 {[%emt 0:00:02]} Bb4 {[%emt 0:00:02]} 4. e5 {[%emt 0:00:02]} c5 {[%emt 0:00:01]} 5. a3 {[%emt 0:00:01]} Ba5 {[%emt 0:00:01]} 6. dxc5 {[%emt 0:00:34]} Bxc3+ $1 {[%emt 0:00:05]} 7. bxc3 {[%emt 0:00:02] C18: French: 3 Nc3 Bb4: Main line: 7 h4 and 7 Qg4.} Qc7 {[%emt 0:00:49]} 8. Nf3 $1 {[%emt 0:00:06]} Nd7 {[%emt 0:00:19][%cal Bb8d7,Bd7c5,Bc5a4][%mdl 32] Black is weak on the dark squares} 9. Bf4 $5 {[%emt 0:01:11][%mdl 4] A promising side line.} (9. c4 $11 {was preferrable.}) 9... Ne7 {[%emt 0:00:12]} 10. Bd3 {[%emt 0:00:07]} Nxc5 {[%emt 0:00:18]} 11. O-O {[%emt 0:00:02]} Bd7 {[%emt 0:01:04] [#]} 12. Re1 $146 {[%emt 0:01:32]} ({Predecessor:} 12. Nd4 Nxd3 13. Qxd3 Rc8 14. Rab1 a6 15. Rfe1 Qxc3 16. Qxc3 Rxc3 17. Rxb7 Rc4 18. Be3 Nc6 19. Nxc6 Rxc6 20. Rc1 Bc8 {½-½ Gallagher,J (2550)-Kelecevic,N (2320) SUI-chT Switzerland 2006 (1.5)}) 12... Ng6 {[%emt 0:02:07] Excellent horsemanship.} 13. Bd2 {[%emt 0:00:44]} Na4 {[%emt 0:00:46]} 14. Ng5 {[%emt 0:00:18]} Bc6 {[%emt 0:01:29]} (14... Nxe5 $2 15. Bf4 f6 16. Qh5+ (16. Nxh7 O-O-O $11) 16... g6 17. Bxg6+ Ke7 18. Bf5 $18 (18. Nxh7 Qxc3 19. Bxe5 fxe5 $18) (18. Bxh7 Raf8 $18) (18. Bxe5 fxe5 19. Nxh7 Qxc3 $18)) (14... Nxc3 $2 15. Qf3 O-O 16. Bxg6 fxg6 17. Qxc3 $18) 15. Qg4 {[%emt 0:00:59][%cal Og5h7]} Nc5 {[%emt 0:01:15]} 16. h4 {[%emt 0:00:58]} h5 {[%emt 0:00:26]} 17. Qb4 {[%emt 0:01:57]} (17. Qh3 $14 {deserves consideration.} Nxd3 18. cxd3) 17... Nxd3 $1 $11 {[%emt 0:00:27]} 18. cxd3 {[%emt 0:00:00]} Ne7 {[%emt 0:00:00]} 19. Nf3 {[%emt 0:00:06]} Nf5 {[%emt 0:00:32]} 20. Bg5 {[%emt 0:00:21]} Qb6 {[%emt 0:00:32]} 21. Qf4 {[%emt 0:00:06]} Qa6 {[%emt 0:00:36]} 22. Red1 {[%emt 0:00:23]} Bb5 {[%emt 0:00:24]} (22... Ba4 $11 {keeps the balance.} 23. Rd2 Bc6) 23. Nd4 {[%emt 0:00:39]} (23. a4 {is interesting.} Bc6 24. Qb4 Qb6 25. Qa3) 23... Nxd4 {[%emt 0:00:59]} 24. Qxd4 {[%emt 0:00:00] Qc5 is the strong threat.} O-O {[%emt 0:02:33]} 25. a4 $36 {[%emt 0:00:05][%mdl 2048] White is really pushing.} Bd7 {[%emt 0:00:00]} 26. Re1 {[%emt 0:00:38] White is more active.} (26. Qf4 $16) 26... Rfc8 {[%emt 0:00:12]} ({Black should play} 26... Kh7 $14) 27. Re3 $1 $16 {[%emt 0:00:07]} Qa5 {[%emt 0:00:07] [#]} (27... Kh7 $16) 28. Qf4 $1 $18 {[%emt 0:00:25]} Qxc3 $2 {[%emt 0:00:06]} (28... Rxc3 $2 29. Rg3 g6 30. Qf6 $18) (28... Bc6 {was called for.} 29. Rg3 (29. Rf3 Qc7 $18) 29... g6) 29. Rb1 {[%emt 0:00:02][%cal Ba1b1,Bb1b7,Bb7d7][%mdl 32]} Qc2 {[%emt 0:00:14]} 30. Rxb7 {[%emt 0:01:33]} Qxa4 {[%emt 0:00:15] [#]} 31. d4 $1 {[%emt 0:00:13]} (31. Qf3 d4 32. Re4 Rab8 33. Rxb8 Rxb8 34. Qxh5 Bc6 $11) 31... Rc1+ $2 {[%emt 0:00:32]} (31... Rab8 32. Rf3 Qd1+ 33. Kh2 $16) (31... Rc4 32. Rd3 Qc6) 32. Kh2 {[%emt 0:00:03] Strongly threatening Rf3.} Rc4 {[%emt 0:00:00]} 33. Rf3 {[%emt 0:00:54]} Rf8 {[%emt 0:00:02] [#]} 34. Rxd7 $1 {[%emt 0:00:02][%mdl 512]} Rxd4 {[%emt 0:00:08]} (34... Qxd7 $2 35. Bf6 $18) 35. Qe3 {[%emt 0:00:01]} Re4 {[%emt 0:00:03][%cal Oe4e3]} 36. Qxa7 {[%emt 0:00:15] Weighted Error Value: White=0.30/Black=0.36} ({Less strong is} 36. Rxa7 Rxe3 37. Rxa4 Rxe5 $18) 1-0

[Event "ChessKid Cup Div-I 2023"]
[Site "Online"]
[Date "2023.05.22"]
[Round "1.3"]
[White "Abdusattorov, Nodirbek"]
[Black "Moussard, Jules"]
[Result "1-0"]
[ECO "D27"]
[WhiteElo "2731"]
[BlackElo "2644"]
[Annotator "TA"]
[PlyCount "107"]
[EventDate "2023.05.21"]
[EventType "k.o."]
[EventCountry "NET"]
[SourceTitle "playchess.com"]
[Source "ChessBase"]
[SourceQuality "1"]
[TimeControl "900+3"]

{[%evp 29,107,8,8,10,10,10,64,15,8,4,5,-4,36,0,0,0,0,0,0,0,12,10,10,0,55,49,58,60,64,54,81,55,51,50,50,48,67,64,70,54,113,114,123,79,109,20,108,14,14,12,16,0,0,0,47,0,0,0,18,21,1124,1073,844,804,1197,1192,1803,1779,1465,1331,4570,1295,5128,5007,5128,5128,1253,710,655,655]} 1. d4 {[%emt 0:00:04]} Nf6 {[%emt 0:00:05]} 2. c4 {[%emt 0:00:02]} e6 {[%emt 0:00:01]} 3. Nf3 {[%emt 0:00:02]} d5 {[%emt 0:00:01]} 4. Nc3 {[%emt 0:00:01]} c5 {[%emt 0:00:01]} 5. e3 {[%emt 0:00:13]} dxc4 {[%emt 0:00:02]} 6. Bxc4 {[%emt 0:00:03]} a6 {[%emt 0:00:04]} 7. a4 {[%emt 0:00:41]} Nc6 {[%emt 0:00:03]} 8. O-O {[%emt 0:00:02]} Be7 {[%emt 0:00:01]} 9. Qe2 {[%emt 0:00:04]} cxd4 {[%emt 0:00:01]} 10. Rd1 {[%emt 0:00:01]} e5 {[%emt 0:00:07]} 11. exd4 {[%emt 0:00:02]} exd4 {[%emt 0:00:15]} 12. Nxd4 {[%emt 0:00:29]} Nxd4 {[%emt 0:00:02]} 13. Qe5 {[%emt 0:00:10]} Qd6 {[%emt 0:00:42]} 14. Qxd4 {[%emt 0:00:45]} Qxd4 {[%emt 0:00:05]} 15. Rxd4 {[%emt 0:00:00]} O-O {[%emt 0:00:11]} 16. Bf4 {[%emt 0:00:13] D27: Queen's Gambit Accepted: Classical main line: 7 e4!? and 7 a4.} Bc5 {[%emt 0:01:03]} 17. Rd2 {[%emt 0:00:05]} Bf5 {[%emt 0:00:12]} (17... Bb4 $11) 18. Nd5 {[%emt 0:02:25] White is more active.} (18. Bd5 $14) 18... Ne4 $11 {[%emt 0:03:36]} 19. Re2 {[%emt 0:00:15][%cal Og2g4]} Rac8 {[%emt 0:00:40] [#]} 20. Bd3 $146 {[%emt 0:03:01]} ({Predecessor:} 20. Ba2 Rfd8 21. Rae1 Be6 22. Rxe4 Bxd5 23. Bxd5 Rxd5 24. Re8+ Rxe8 25. Rxe8+ Bf8 26. Kf1 f6 27. Rb8 Rd7 28. Ke2 Kf7 29. b3 Bb4 30. Rc8 Ke6 {½-½ Koneru,H (2496)-Kosteniuk,A (2456) Corus-B Wijk aan Zee 2003 (4)}) 20... Ng3 {[%emt 0:00:13][%mdl 64] Discovered Attack} 21. Rd2 {[%emt 0:00:44][%cal Be2d2,Bd2d3,Bd3d7,Bd7c7][%mdl 32]} Bxd3 {[%emt 0:00:07]} 22. Rxd3 {[%emt 0:00:04]} Ne2+ {[%emt 0:00:34]} 23. Kf1 {[%emt 0:00:01]} Nxf4 {[%emt 0:00:03]} 24. Nxf4 {[%emt 0:00:00]} Rc6 {[%emt 0:01:26]} 25. Rd7 {[%emt 0:00:13]} Rb8 {[%emt 0:01:34]} 26. Rc1 {[%emt 0:00:36]} g6 {[%emt 0:00:29]} (26... Rd6 $1 $11 27. Rd1 Rxd1+ 28. Rxd1 Kf8) 27. Nd3 $36 {[%emt 0:00:20][%mdl 2048] White has the initiative.} Bf8 {[%emt 0:00:18]} 28. Rxc6 {[%emt 0:00:12]} bxc6 {[%emt 0:00:00][%mdl 4096] Endgame KRB-KRN} 29. Ke2 {[%emt 0:00:07]} Bg7 {[%emt 0:00:52]} 30. Rc7 {[%emt 0:00:03]} Bxb2 {[%emt 0:00:17]} 31. Rxc6 {[%emt 0:00:02][%cal Oa4a5]} a5 {[%emt 0:00:09]} 32. Rc5 {[%emt 0:00:05]} Bd4 {[%emt 0:00:42]} 33. Rxa5 {[%emt 0:00:04]} Rb3 {[%emt 0:00:06]} 34. Rd5 {[%emt 0:00:16]} Bf6 {[%emt 0:00:01] Wards off Rd8+} (34... Bc3 $14) 35. a5 $16 {[%emt 0:00:57]} Ra3 {[%emt 0:00:02]} 36. Nb4 {[%emt 0:00:05]} Kg7 {[%emt 0:00:29]} 37. g3 {[%emt 0:02:05]} (37. Nc6 $16) 37... h5 {[%emt 0:00:01] [#]} (37... Bc3 $1 $11 {keeps the balance.} 38. Nc6 Kf6) 38. h4 {[%emt 0:00:08]} ({Better is} 38. Nc6 $1 $16) 38... Bc3 $11 {[%emt 0:00:10]} 39. Nc6 {[%emt 0:00:04]} Ra2+ {[%emt 0:00:07]} 40. Kf1 {[%emt 0:00:11]} Ra1+ {[%emt 0:00:01]} 41. Kg2 {[%emt 0:00:01]} Ra2 {[%emt 0:00:04]} (41... Be1 $1 $11) 42. Kf1 {[%emt 0:00:24]} (42. Rc5 $5 {[%cal Rc5c3]} Be1 43. Kf1 $16) 42... Ra1+ {[%emt 0:00:02]} 43. Ke2 {[%emt 0:00:00]} Ra2+ {[%emt 0:00:02]} 44. Kd1 {[%emt 0:00:12]} Rxf2 $2 {[%emt 0:00:24][%mdl 8192] [#] Loses the game.} (44... Ra4 $11) 45. a6 $1 $18 {[%emt 0:00:05] White is clearly winning.} Ra2 {[%emt 0:00:44]} 46. a7 {[%emt 0:00:01]} Ra6 {[%emt 0:00:53]} 47. Rd8 {[%emt 0:00:15]} Be5 {[%emt 0:00:07]} 48. a8=Q {[%emt 0:00:04]} ({Less strong is} 48. a8=B Bxg3 49. Bb7 Ra1+ 50. Ke2 Bxh4 $14) 48... Rxa8 {[%emt 0:00:01]} 49. Rxa8 {[%emt 0:00:00]} Bxg3 {[%emt 0:00:01]} 50. Ra4 {[%emt 0:00:04] Hoping for Kd2.} f6 {[%emt 0:00:12]} 51. Ke2 {[%emt 0:00:02]} g5 {[%emt 0:00:00]} 52. hxg5 {[%emt 0:00:02]} fxg5 {[%emt 0:00:01]} 53. Nd4 {[%emt 0:00:01] aiming for Nf5+.} Kf6 {[%emt 0:00:11] Repels Nf5} 54. Ra6+ {[%emt 0:00:04] Weighted Error Value: White=0.25 (precise) /Black=0.20 (precise)} 1-0

[Event "ChessKid Cup Div-I 2023"]
[Site "Online"]
[Date "2023.05.22"]
[Round "1.4"]
[White "Van Foreest, Jorden"]
[Black "Nakamura, Hikaru"]
[Result "1-0"]
[ECO "E32"]
[WhiteElo "2689"]
[BlackElo "2775"]
[Annotator "TA"]
[PlyCount "179"]
[EventDate "2023.05.21"]
[EventType "k.o."]
[EventCountry "NET"]
[SourceTitle "playchess.com"]
[Source "ChessBase"]
[SourceQuality "1"]
[TimeControl "900+3"]

{[%evp 29,179,6,44,18,20,18,70,78,95,89,104,95,91,91,104,85,64,69,152,103,193,93,99,84,86,92,95,6,38,0,26,-13,-18,-8,-4,-18,-21,-90,-39,-41,-52,-61,-52,-61,-47,-84,-93,-125,46,37,45,56,71,68,56,0,16,18,16,15,18,16,22,22,38,43,64,56,83,83,170,170,169,70,91,91,79,79,197,159,552,91,91,91,94,87,161,142,142,45,51,34,215,215,215,142,142,45,45,45,249,142,215,142,292,240,263,222,222,184,264,222,210,175,372,369,329,287,381,350,711,692,774,742,992,901,2758,2746,2619,2466,2587,2561,2258,1650,2399,2441,1868,1809,1654,1685,1238,1104,797,733,711,1260,1226,700,29965,11058,5061,5061]} 1. d4 {[%emt 0:00:03]} Nf6 {[%emt 0:00:05]} 2. c4 {[%emt 0:00:02]} e6 {[%emt 0:00:01]} 3. Nc3 {[%emt 0:00:04]} Bb4 {[%emt 0:00:01]} 4. Qc2 {[%emt 0:00:01]} O-O {[%emt 0:00:02]} 5. e4 {[%emt 0:00:02]} d5 {[%emt 0:00:04]} 6. e5 {[%emt 0:00:02]} Ne4 {[%emt 0:00:00]} 7. Bd3 {[%emt 0:00:01]} c5 {[%emt 0:00:01]} 8. a3 {[%emt 0:00:00]} Bxc3+ {[%emt 0:00:04]} 9. bxc3 {[%emt 0:00:01]} cxd4 {[%emt 0:00:04]} 10. cxd4 {[%emt 0:00:03]} Qa5+ {[%emt 0:00:00]} 11. Kf1 {[%emt 0:00:03]} Bd7 {[%emt 0:00:01]} 12. Ne2 {[%emt 0:01:06]} f6 {[%emt 0:03:49]} 13. Bxe4 {[%emt 0:00:21]} dxe4 {[%emt 0:00:02]} 14. exf6 {[%emt 0:00:00]} Rxf6 {[%emt 0:00:11]} 15. Be3 {[%emt 0:00:32]} Bc6 {[%emt 0:00:14]} 16. Ng3 {[%emt 0:00:28]} Nd7 {[%emt 0:00:15]} 17. Kg1 {[%emt 0:00:13]} Rg6 {[%emt 0:01:00]} (17... Rc8 $11) 18. h4 $14 {[%emt 0:00:20]} (18. Nxe4 $2 Qf5 19. d5 exd5 $19) 18... Rg4 {[%emt 0:00:03]} 19. h5 {[%emt 0:00:56]} h6 {[%emt 0:00:08]} 20. Rh3 {[%emt 0:00:54]} Nf6 {[%emt 0:00:17]} 21. Nf1 {[%emt 0:00:55]} Rd8 {[%emt 0:04:03]} 22. Nh2 {[%emt 0:00:34]} Rg5 {[%emt 0:00:01]} (22... Ba4 $2 23. Qb2 $18) 23. d5 $1 {[%emt 0:01:33]} Ba4 {[%emt 0:01:04]} (23... exd5 $14 24. Bxg5 hxg5) 24. Qe2 {[%emt 0:00:30]} ({Better is} 24. Qb2 Rxh5 25. Rxh5 (25. Qxb7 Rxh3 26. gxh3 exd5 $17) 25... Nxh5 26. Qe5 (26. Qxb7 exd5 27. cxd5 Nf6 $11) (26. dxe6 Bc6 $11)) 24... Re5 {[%emt 0:00:32]} (24... exd5 $16 25. Bxg5 hxg5) 25. Bd4 {[%emt 0:00:21]} (25. Ng4 $18 {is more deadly. Hoping for Nxf6+.} Nxg4 26. Qxg4 exd5 27. Bxh6) 25... Qc7 $16 {[%emt 0:00:17]} 26. Bxe5 {[%emt 0:00:22]} Qxe5 {[%emt 0:00:01]} 27. Re1 $1 {[%emt 0:00:02]} exd5 {[%emt 0:00:05]} 28. cxd5 {[%emt 0:00:01]} (28. Ng4 $16 Nxg4 29. Qxg4) 28... Rxd5 {[%emt 0:00:01]} 29. Nf1 {[%emt 0:01:07]} (29. Qc4 $5 {[%cal Rc4a4]} Bc6 30. Rd3 $14) 29... Be8 {[%emt 0:00:46]} 30. Ng3 {[%emt 0:00:15]} Bd7 {[%emt 0:00:18]} 31. Rh4 {[%emt 0:00:16]} Qg5 {[%emt 0:00:02]} 32. Rh1 {[%emt 0:00:00]} (32. Nxe4 $2 Qxh4 33. Nxf6+ Qxf6 $19) 32... Bc6 {[%emt 0:00:19]} 33. Nf1 {[%emt 0:01:34]} (33. Nxe4 $2 Nxe4 34. Qe3 (34. Qxe4 $2 Re5 $19 {[%mdl 64] Pin, Skewer}) 34... Nf6 35. Qxg5 Rxg5 $19) (33. Qe3 $11 {keeps the balance.}) 33... Nxh5 {[%emt 0:00:26]} ({Black should play} 33... Rd3 $1 $17) 34. Ne3 {[%emt 0:00:31]} Nf4 {[%emt 0:00:02]} 35. Qg4 $1 {[%emt 0:00:45]} Qxg4 {[%emt 0:00:20]} 36. Nxg4 {[%emt 0:00:00]} Ra5 {[%emt 0:00:08]} 37. Rh4 {[%emt 0:00:03]} Nd3 {[%emt 0:00:08]} ({Reject} 37... Rxa3 $6 38. Nxh6+ gxh6 39. Rxf4 $11) 38. Ra1 {[%emt 0:00:00]} Rf5 $2 {[%emt 0:00:22]} (38... b5 $1 $17 {...b4 is the strong threat.} 39. Rh5 Ra4) 39. Rxh6 $1 $14 {[%emt 0:00:43]} Rf4 {[%emt 0:00:23]} 40. Rg6 {[%emt 0:00:08]} Bd7 {[%emt 0:00:01]} 41. Ne3 $1 {[%emt 0:00:08]} Rxf2 {[%emt 0:00:02] [#]} 42. Rc1 {[%emt 0:00:11]} (42. Rd6 $1 $14 Rf7 43. Rf1 Rxf1+ 44. Kxf1) 42... Bc6 {[%emt 0:00:21]} (42... Ra2 $5 {[%cal Rd3c1]} 43. Rc7 Nf4 $11) 43. Rf1 {[%emt 0:00:05]} Rxf1+ {[%emt 0:00:08]} 44. Kxf1 {[%emt 0:00:01]} Kf7 {[%emt 0:00:00]} 45. Rd6 {[%emt 0:00:08]} Nf4 {[%emt 0:00:20]} 46. Kf2 {[%emt 0:00:12]} Ne6 {[%emt 0:00:04]} 47. Nc4 {[%emt 0:00:14]} Ke7 {[%emt 0:00:03]} 48. Rd1 {[%emt 0:00:01]} Nf4 {[%emt 0:00:12]} 49. Ne5 {[%emt 0:00:06]} e3+ {[%emt 0:00:08]} (49... Bb5 $16 {is a better defense.}) 50. Kxe3 $18 {[%emt 0:00:13]} Nxg2+ {[%emt 0:00:01]} 51. Kd4 {[%emt 0:00:00]} (51. Kf2 $18 {Strongly threatening Nxc6+.} Nh4 52. Nxc6+ bxc6 53. Rd4) 51... Kd6 {[%emt 0:00:08]} 52. Rf1 {[%emt 0:00:42]} Be8 {[%emt 0:00:13]} 53. Rf8 {[%emt 0:00:06]} Ba4 {[%emt 0:00:02]} (53... Bb5 $16) 54. Rf7 {[%emt 0:00:03]} Bc6 $2 {[%emt 0:00:04]} (54... Ne3 $16 {is tougher.}) 55. Nc4+ $2 {[%emt 0:00:15]} (55. Rxg7 Nh4 56. Nf7+ Kc7 57. Ne5+ Kd6 58. Nf7+ Kc7 $16) (55. Nxc6 $1 $18 {and the rest is easy.} Kxc6 56. Rxg7) 55... Ke6 $16 {[%emt 0:00:02]} 56. Rxg7 {[%emt 0:00:00]} Nh4 {[%emt 0:00:00]} 57. Kc5 {[%emt 0:00:07]} Bf3 {[%emt 0:00:01]} (57... Nf5 $16 58. Rg6+ Ke7) 58. Ne3 {[%emt 0:00:11]} Bc6 {[%emt 0:00:09]} 59. Nc2 {[%emt 0:00:05]} (59. Rg8 $16) 59... Nf5 $14 {[%emt 0:00:01]} 60. Rh7 {[%emt 0:00:05]} a6 $2 {[%emt 0:00:04]} (60... Be4 $14) 61. Nb4 $18 {[%emt 0:00:06]} Be4 {[%emt 0:00:02]} 62. Kb6 {[%emt 0:00:01]} Nd6 {[%emt 0:00:01]} 63. Rh6+ {[%emt 0:00:00]} (63. Rh3 $1 $16) 63... Ke5 $14 {[%emt 0:00:01]} 64. Kc5 {[%emt 0:00:06]} Nf5 $2 {[%emt 0:00:05] [#]} (64... b6+ $1 $14 65. Kxb6 Nc4+ 66. Kc5 (66. Kxa6 Nxa3 67. Na2 Bd5 $16) 66... Nxa3 67. Nxa6 (67. Rxa6 Nc2 $16) 67... Nb1) 65. Rh5 {[%emt 0:00:00]} (65. Rh3 $1 $18) 65... Bf3 {[%emt 0:00:01]} (65... Kf4 $16 {keeps fighting.} 66. a4 Ke5) 66. Rg5 {[%emt 0:00:01]} Kf6 {[%emt 0:00:06]} (66... Be4 $16 67. Na2 Bc6) 67. Rg8 {[%emt 0:00:03]} Ke6 {[%emt 0:00:01]} 68. Re8+ {[%emt 0:00:03]} Ne7 {[%emt 0:00:05]} 69. Nd3 {[%emt 0:00:07]} Be4 {[%emt 0:00:03] [#]} (69... Kd7 $142 70. Rh8 Kc7) 70. Nb2 $1 $18 {[%emt 0:00:08]} Bc6 {[%emt 0:00:05]} 71. Rh8 {[%emt 0:00:03]} Nf5 $2 {[%emt 0:00:03]} (71... Nd5 {was worth a try.} 72. Nc4 Nf6) 72. Nc4 $18 {[%emt 0:00:01]} Bf3 {[%emt 0:00:02]} 73. Na5 {[%emt 0:00:03]} Bg2 {[%emt 0:00:09]} 74. Rh7 {[%emt 0:00:01]} b5 $2 {[%emt 0:00:02]} (74... Ne7 75. Rh2 Bf3) 75. Ra7 $18 {[%emt 0:00:02]} Bf1 {[%emt 0:00:03]} 76. Rxa6+ {[%emt 0:00:00]} Kd7 {[%emt 0:00:01]} 77. Nc6 {[%emt 0:00:02]} Ng3 {[%emt 0:00:05]} 78. Ra7+ {[%emt 0:00:04]} Ke6 {[%emt 0:00:01]} 79. Nd4+ {[%emt 0:00:01]} Ke5 {[%emt 0:00:01]} 80. Nxb5 {[%emt 0:00:00]} Ne4+ {[%emt 0:00:01]} 81. Kb4 {[%emt 0:00:01]} Kd5 {[%emt 0:00:02]} 82. a4 {[%emt 0:00:01]} Nc5 {[%emt 0:00:03]} 83. Rh7 {[%emt 0:00:05]} Nd3+ {[%emt 0:00:04]} 84. Ka5 {[%emt 0:00:01]} Nb2 {[%emt 0:00:01]} 85. Rh2 {[%emt 0:00:02]} Nd3 {[%emt 0:00:02]} 86. Kb6 {[%emt 0:00:01]} Ne5 {[%emt 0:00:01]} 87. Rh5 {[%emt 0:00:03]} (87. Nc7+ $142 Ke4 88. a5) 87... Ke6 $18 {[%emt 0:00:01]} 88. Kc7 {[%emt 0:00:11]} Kf6 {[%emt 0:00:04]} 89. Nd4 {[%emt 0:00:02]} Bd3 {[%emt 0:00:02]} 90. a5 {[%emt 0:00:02]} 1-0

[Event "ChessKid Cup Div-I 2023"]
[Site "Online"]
[Date "2023.05.22"]
[Round "1.4"]
[White "Kollars, Dmitrij"]
[Black "Firouzja, Alireza"]
[Result "0-1"]
[ECO "B22"]
[WhiteElo "2607"]
[BlackElo "2785"]
[Annotator "TA"]
[PlyCount "96"]
[EventDate "2023.05.21"]
[EventType "k.o."]
[EventCountry "NET"]
[SourceTitle "playchess.com"]
[Source "ChessBase"]
[SourceQuality "1"]
[TimeControl "900+3"]

{[%evp 9,96,67,66,59,52,61,93,48,53,42,72,21,41,6,8,4,16,9,16,0,0,0,0,4,0,0,7,0,0,-29,-29,-18,-22,-22,20,-77,-60,-168,-162,-161,-180,-227,-206,-270,-269,-270,-258,-277,-277,-277,-270,-285,-270,-359,-364,-445,-340,-439,-460,-972,-690,-686,-672,-670,-662,-765,-735,-938,-876,-997,-1082,-1031,-1008,-989,-920,-1520,-1411,-1184,-1006,-898,-839,-2215,-3400,-5289,-3828,-29976,-29980,-29980,-29981]} 1. e4 {[%emt 0:00:03]} c5 {[%emt 0:00:04]} 2. c3 {[%emt 0:00:02]} Nf6 {[%emt 0:01:09]} 3. e5 {[%emt 0:00:03]} Ng8 {[%emt 0:00:48]} 4. d4 {[%emt 0:00:21]} cxd4 {[%emt 0:00:02]} 5. cxd4 {[%emt 0:00:00]} d5 {[%emt 0:00:03]} 6. Nc3 {[%emt 0:00:18] B22: Sicilian: 2 c3.} Nc6 {[%emt 0:00:02]} 7. Be3 {[%emt 0:00:48]} Nh6 {[%emt 0:00:27][%cal Bg8h6,Bh6f5,Bf5e3][%mdl 32]} 8. Bd3 {[%emt 0:00:25] White is better.} Nf5 {[%emt 0:00:09] [#]} 9. Nf3 $146 {[%emt 0:00:07]} ({Predecessor:} 9. Nge2 g6 10. Bxf5 gxf5 11. Nf4 e6 12. Nh5 Be7 13. O-O Rg8 14. Re1 b6 15. Rc1 {1-0 Raicevic,V-Cibulka,V Trencianske Teplice 1974 (6)}) 9... g6 {[%emt 0:01:06]} 10. O-O {[%emt 0:00:10]} (10. Qb3 $16) 10... Bg7 {[%emt 0:00:03]} 11. Qb3 {[%emt 0:00:28]} Nxe3 $1 {[%emt 0:00:47]} 12. fxe3 {[%emt 0:00:02]} e6 {[%emt 0:00:01]} 13. e4 {[%emt 0:01:21][%cal Re4d5]} dxe4 {[%emt 0:00:14]} 14. Bxe4 {[%emt 0:00:50]} (14. Nxe4 $5 {[%cal Re4d6]} O-O 15. Qc4 $11) 14... Nxd4 {[%emt 0:00:52]} 15. Qa4+ {[%emt 0:00:17]} Nc6 $1 {[%emt 0:00:01]} 16. Bxc6+ {[%emt 0:01:40]} bxc6 {[%emt 0:00:00]} 17. Qxc6+ {[%emt 0:00:01]} Bd7 {[%emt 0:00:05]} 18. Qd6 {[%emt 0:00:05]} Bf8 $36 {[%emt 0:00:33][%mdl 2048] Black is more active.} 19. Qd4 {[%emt 0:00:22]} Bc6 $1 {[%emt 0:00:32]} 20. Qf4 {[%emt 0:00:29] Threatens to win with Nd4.} Qb6+ {[%emt 0:03:50]} 21. Kh1 $1 {[%emt 0:00:44]} ({Of course not} 21. Nd4 O-O-O 22. Nce2 Rxd4 23. Nxd4 Bc5 $17) 21... Be7 {[%emt 0:00:01] Against Qf6} (21... Qxb2 $2 22. Nd2 O-O-O 23. Qc4 $18) 22. Ng5 {[%emt 0:02:32] [#]} (22. Nd4 $11 {keeps the balance.} O-O 23. Nxc6 Qxc6 24. Ne4) 22... O-O $1 $17 {[%emt 0:00:49][%cal Oc6g2] Strongly threatening ...Bxg2+!} (22... Qxb2 $2 23. Qxf7+ Kd8 24. Rad1+ Kc8 25. Qxe6+ (25. Qxe7 $2 Qxg2#) 25... Kb7 26. Qxe7+ $18) 23. Nce4 {[%emt 0:00:03] White is on the road to losing.} (23. Nge4 $15) 23... Bxg5 $19 {[%emt 0:00:54]} ({Stronger than} 23... Qxb2 24. Rab1 Qxa2 25. Ra1 $17) 24. Nxg5 {[%emt 0:00:00]} Qxb2 {[%emt 0:00:03][%csl Gc6][%cal Rb2g2]} 25. Qg3 {[%emt 0:00:01]} (25. Ne4 $142) 25... Rad8 {[%emt 0:00:16][%cal Od8d3]} 26. Rab1 {[%emt 0:02:12]} Qxa2 {[%emt 0:00:09][%cal Od8d3]} ({But not} 26... Qd2 $2 27. Rf2 $19) 27. Ra1 {[%emt 0:00:01]} Qe2 {[%emt 0:00:52]} 28. Rae1 {[%emt 0:00:24]} Qd2 {[%emt 0:00:07] White must now prevent ...Rd3.} 29. Nf3 {[%emt 0:02:11]} Bxf3 {[%emt 0:00:01]} 30. Rxf3 {[%emt 0:00:00]} a5 {[%emt 0:00:09]} 31. h4 {[%emt 0:00:03]} Rd4 {[%emt 0:00:11]} 32. Kh2 {[%emt 0:00:10]} h5 {[%emt 0:00:28]} 33. Ree3 {[%emt 0:00:20]} Rg4 {[%emt 0:00:05]} 34. Qh3 {[%emt 0:00:01]} (34. Qf2 $142 Qxf2 35. Rxf2) 34... Qd4 {[%emt 0:00:26]} 35. g3 {[%emt 0:00:02]} Re4 {[%emt 0:00:02]} 36. Rxe4 {[%emt 0:00:12]} Qxe4 {[%emt 0:00:01][%mdl 4096] Endgame KQR-KQR} 37. Qg2 {[%emt 0:00:03]} Qxe5 {[%emt 0:00:02]} 38. Qf2 {[%emt 0:00:01]} a4 {[%emt 0:00:14]} 39. Qa7 {[%emt 0:00:03]} Qb2+ {[%emt 0:00:35]} 40. Kh3 {[%emt 0:00:02]} Qc1 {[%emt 0:00:11][%cal Rc1h1]} 41. Kh2 {[%emt 0:00:04] Prevents Qh1+} Qc2+ {[%emt 0:00:02]} 42. Kh3 {[%emt 0:00:04]} e5 {[%emt 0:00:06][%cal Be6e5,Be5e4,Be4e3][%mdl 32]} 43. Rf2 {[%emt 0:00:04]} Qc6 {[%emt 0:00:04] ...Qh1+ is the strong threat.} 44. Kh2 {[%emt 0:00:01]} e4 {[%emt 0:00:04]} 45. Ra2 {[%emt 0:00:02]} Ra8 {[%emt 0:00:03]} 46. Qe3 {[%emt 0:00:02]} Qc4 {[%emt 0:00:06]} 47. Qa3 {[%emt 0:00:02] [#]} e3 $1 {[%emt 0:00:03]} 48. Rg2 {[%emt 0:00:08]} Re8 {[%emt 0:00:03] Weighted Error Value: White=0.55/Black=0.17 (very precise)} 0-1